[Event "Late-Titled-Tuesday-Blitz-April-02-2024"]
[Site "Chess.com"]
[Date "2024.04.02"]
[Round "5"]
[White "prime-morty"]
[Black "AktilekAskarovich"]
[Result "0-1"]
[WhiteElo "2583"]
[BlackElo "2448"]
[TimeControl "180+1"]
[EndTime "14:54:17 PDT"]
[Termination "AktilekAskarovich won on time"]

1. c4 {[%clk 0:03:00.9]} 1... c6 {[%clk 0:02:55.3]} 2. Nc3 {[%clk 0:02:58.7]}
2... d5 {[%clk 0:02:56.2]} 3. e3 {[%clk 0:02:59.3]} 3... Nf6 {[%clk 0:02:55.7]}
4. Nf3 {[%clk 0:02:59.5]} 4... Nbd7 {[%clk 0:02:56.1]} 5. cxd5 {[%clk
0:02:55.1]} 5... cxd5 {[%clk 0:02:57]} 6. b3 {[%clk 0:02:53.4]} 6... e5 {[%clk
0:02:54.7]} 7. Bb2 {[%clk 0:02:54]} 7... a6 {[%clk 0:02:55.1]} 8. Be2 {[%clk
0:02:51.2]} 8... Bd6 {[%clk 0:02:53.4]} 9. O-O {[%clk 0:02:51.4]} 9... h5 {[%clk
0:02:52.1]} 10. d3 {[%clk 0:02:34]} 10... Qe7 {[%clk 0:02:46.9]} 11. e4 {[%clk
0:02:25.1]} 11... d4 {[%clk 0:02:43.8]} 12. Nb1 {[%clk 0:02:25.2]} 12... h4
{[%clk 0:02:39.9]} 13. h3 {[%clk 0:02:25.1]} 13... Nc5 {[%clk 0:02:37.4]} 14.
Nbd2 {[%clk 0:02:19]} 14... g5 {[%clk 0:02:37.2]} 15. Nh2 {[%clk 0:02:10.5]}
15... Ne6 {[%clk 0:02:33.5]} 16. Bg4 {[%clk 0:01:57.1]} 16... Nf4 {[%clk
0:02:29.2]} 17. Nc4 {[%clk 0:01:51.9]} 17... b5 {[%clk 0:02:16.1]} 18. Nb6
{[%clk 0:01:44.9]} 18... Bxg4 {[%clk 0:02:10.8]} 19. Nxg4 {[%clk 0:01:45.2]}
19... Rb8 {[%clk 0:02:10.3]} 20. Nxf6+ {[%clk 0:01:41.9]} 20... Qxf6 {[%clk
0:02:10.9]} 21. Nd5 {[%clk 0:01:42.6]} 21... Nxd5 {[%clk 0:02:10.4]} 22. exd5
{[%clk 0:01:43.5]} 22... Qf4 {[%clk 0:01:56.6]} 23. Bc1 {[%clk 0:01:38.6]} 23...
Qf5 {[%clk 0:01:52.8]} 24. Qf3 {[%clk 0:01:38.8]} 24... Qxf3 {[%clk 0:01:52.3]}
25. gxf3 {[%clk 0:01:39.7]} 25... f6 {[%clk 0:01:52.3]} 26. Bd2 {[%clk 0:01:38]}
26... Kd7 {[%clk 0:01:51.7]} 27. b4 {[%clk 0:01:25.9]} 27... Rhc8 {[%clk
0:01:43.7]} 28. Rfc1 {[%clk 0:01:22.6]} 28... Be7 {[%clk 0:01:40.1]} 29. Rxc8
{[%clk 0:01:18.4]} 29... Rxc8 {[%clk 0:01:41]} 30. a4 {[%clk 0:01:18.9]} 30...
Rc2 {[%clk 0:01:40.6]} 31. Be1 {[%clk 0:01:18.9]} 31... Kd6 {[%clk 0:01:36.3]}
32. axb5 {[%clk 0:01:18.2]} 32... axb5 {[%clk 0:01:36.1]} 33. Ra5 {[%clk
0:01:09.5]} 33... Rc1 {[%clk 0:01:36.1]} 34. Kf1 {[%clk 0:01:09.2]} 34... Kxd5
{[%clk 0:01:36.3]} 35. Rxb5+ {[%clk 0:01:09.1]} 35... Kc6 {[%clk 0:01:36.3]} 36.
Rb8 {[%clk 0:01:09.1]} 36... Bd6 {[%clk 0:01:36.3]} 37. Rc8+ {[%clk 0:01:08.1]}
37... Bc7 {[%clk 0:01:35.2]} 38. Ke2 {[%clk 0:01:06]} 38... Kd7 {[%clk
0:01:29.6]} 39. Rf8 {[%clk 0:01:02.5]} 39... Ke7 {[%clk 0:01:27.9]} 40. Ra8
{[%clk 0:01:00.6]} 40... Rc2+ {[%clk 0:01:26.3]} 41. Kd1 {[%clk 0:01:00.3]}
41... Rb2 {[%clk 0:01:26.7]} 42. Bd2 {[%clk 0:00:56.6]} 42... Bd6 {[%clk
0:01:24.6]} 43. Kc1 {[%clk 0:00:56]} 43... Rxd2 {[%clk 0:01:22.1]} 44. Kxd2
{[%clk 0:00:56.2]} 44... Bxb4+ {[%clk 0:01:23]} 45. Kc2 {[%clk 0:00:52.8]} 45...
Be1 {[%clk 0:01:20.7]} 46. Kb3 {[%clk 0:00:52.5]} 46... Bxf2 {[%clk 0:01:20.3]}
47. Kc4 {[%clk 0:00:53]} 47... Ke6 {[%clk 0:01:20.1]} 48. Ra6+ {[%clk
0:00:52.5]} 48... Kf5 {[%clk 0:01:19.7]} 49. Kd5 {[%clk 0:00:53]} 49... Be3
{[%clk 0:01:13.4]} 50. Rc6 {[%clk 0:00:47.6]} 50... Bd2 {[%clk 0:01:13.1]} 51.
Rb6 {[%clk 0:00:41.9]} 51... Be3 {[%clk 0:01:11.5]} 52. Rb8 {[%clk 0:00:34.3]}
52... Kf4 {[%clk 0:01:10.9]} 53. Rf8 {[%clk 0:00:35]} 53... Kxf3 {[%clk
0:01:05.8]} 54. Rxf6+ {[%clk 0:00:34.9]} 54... Kg3 {[%clk 0:01:02.1]} 55. Kxe5
{[%clk 0:00:29.8]} 55... Kxh3 {[%clk 0:01:02.1]} 56. Ke4 {[%clk 0:00:28.1]}
56... g4 {[%clk 0:01:00.4]} 57. Rg6 {[%clk 0:00:24.1]} 57... g3 {[%clk
0:00:48.1]} 58. Kf3 {[%clk 0:00:24.4]} 58... Kh2 {[%clk 0:00:48.2]} 59. Rg4
{[%clk 0:00:24.1]} 59... Kh3 {[%clk 0:00:48.2]} 60. Rg6 {[%clk 0:00:22.7]} 60...
Bd2 {[%clk 0:00:48.2]} 61. Rg4 {[%clk 0:00:22.5]} 61... Be1 {[%clk 0:00:45.2]}
62. Rg6 {[%clk 0:00:15.4]} 62... Kh2 {[%clk 0:00:44.8]} 63. Rg4 {[%clk
0:00:13.6]} 63... h3 {[%clk 0:00:45.1]} 64. Ke2 {[%clk 0:00:12.3]} 64... Bf2
{[%clk 0:00:44.6]} 65. Kf3 {[%clk 0:00:12.6]} 65... Kg1 {[%clk 0:00:41.4]} 66.
Rg8 {[%clk 0:00:10.3]} 66... h2 {[%clk 0:00:42.1]} 0-1

[Event "Late-Titled-Tuesday-Blitz-April-02-2024"]
[Site "Chess.com"]
[Date "2024.04.02"]
[Round "5"]
[White "Jospem"]
[Black "Hikaru"]
[Result "0-1"]
[WhiteElo "3040"]
[BlackElo "3270"]
[TimeControl "180+1"]
[EndTime "14:54:27 PDT"]
[Termination "Hikaru won by resignation"]

1. e4 {[%clk 0:03:00.9]} 1... d5 {[%clk 0:02:55.7]} 2. exd5 {[%clk 0:02:59.2]}
2... Qxd5 {[%clk 0:02:56.6]} 3. Nf3 {[%clk 0:02:58.5]} 3... Qa5 {[%clk
0:02:55.5]} 4. Be2 {[%clk 0:02:58.5]} 4... c5 {[%clk 0:02:53]} 5. O-O {[%clk
0:02:58.3]} 5... Nc6 {[%clk 0:02:53.6]} 6. c3 {[%clk 0:02:53.3]} 6... Bf5 {[%clk
0:02:45.3]} 7. d4 {[%clk 0:02:52.1]} 7... cxd4 {[%clk 0:02:45.7]} 8. Nxd4 {[%clk
0:02:52.1]} 8... Nxd4 {[%clk 0:02:46]} 9. Qxd4 {[%clk 0:02:51.3]} 9... Rd8
{[%clk 0:02:41.1]} 10. Qc4 {[%clk 0:02:43.1]} 10... a6 {[%clk 0:02:32.2]} 11.
Qb3 {[%clk 0:02:36.3]} 11... Qc7 {[%clk 0:02:19.3]} 12. Be3 {[%clk 0:02:35.2]}
12... Rd7 {[%clk 0:02:17.7]} 13. Na3 {[%clk 0:02:28.8]} 13... Nf6 {[%clk
0:02:16.6]} 14. Rad1 {[%clk 0:02:23.7]} 14... Be4 {[%clk 0:02:14.1]} 15. Rxd7
{[%clk 0:02:15]} 15... Nxd7 {[%clk 0:02:13.8]} 16. Qc4 {[%clk 0:02:03.8]} 16...
Qxc4 {[%clk 0:02:05.9]} 17. Nxc4 {[%clk 0:02:04.7]} 17... e6 {[%clk 0:02:01.6]}
18. Rd1 {[%clk 0:02:02.6]} 18... Bd5 {[%clk 0:02:01.6]} 19. Na5 {[%clk
0:01:58.1]} 19... Be7 {[%clk 0:01:45.6]} 20. c4 {[%clk 0:01:53.5]} 20... Be4
{[%clk 0:01:45.7]} 21. a3 {[%clk 0:01:49.6]} 21... Bd8 {[%clk 0:01:43.2]} 22.
Rd4 {[%clk 0:01:22.5]} 22... f5 {[%clk 0:01:12.8]} 23. Rxe4 {[%clk 0:01:21.6]}
23... fxe4 {[%clk 0:01:12.3]} 24. Nxb7 {[%clk 0:01:22.3]} 24... Bc7 {[%clk
0:01:07.7]} 25. c5 {[%clk 0:01:19.9]} 25... a5 {[%clk 0:01:07.7]} 26. b4 {[%clk
0:00:56.8]} 26... axb4 {[%clk 0:01:07.5]} 27. axb4 {[%clk 0:00:57.7]} 27... Ke7
{[%clk 0:01:08.1]} 28. c6 {[%clk 0:00:50.3]} 28... Nb6 {[%clk 0:01:04.6]} 29.
Bc5+ {[%clk 0:00:42.5]} 29... Kf6 {[%clk 0:01:03.4]} 30. Nd6 {[%clk 0:00:42.5]}
30... Nd5 {[%clk 0:00:54.4]} 31. Nxe4+ {[%clk 0:00:41.9]} 31... Ke5 {[%clk
0:00:53.4]} 32. Nd2 {[%clk 0:00:31.3]} 32... Ra8 {[%clk 0:00:51.7]} 33. g3
{[%clk 0:00:27]} 33... Nc3 {[%clk 0:00:34.7]} 34. Bd3 {[%clk 0:00:25.1]} 34...
Kd5 {[%clk 0:00:31.7]} 35. Bc4+ {[%clk 0:00:20.8]} 35... Kxc6 {[%clk 0:00:31.4]}
36. Bxe6 {[%clk 0:00:20.6]} 36... Bd6 {[%clk 0:00:26.8]} 37. Nb3 {[%clk
0:00:14.9]} 37... Bxc5 {[%clk 0:00:21.7]} 38. Nxc5 {[%clk 0:00:15.6]} 38... Ra1+
{[%clk 0:00:18.6]} 39. Kg2 {[%clk 0:00:16.1]} 39... Rb1 {[%clk 0:00:19.2]} 40.
Nd3 {[%clk 0:00:15.3]} 40... Kd6 {[%clk 0:00:19.3]} 41. Bg8 {[%clk 0:00:15.6]}
41... h6 {[%clk 0:00:19.6]} 42. Bh7 {[%clk 0:00:16.1]} 42... Rb3 {[%clk
0:00:17.4]} 43. Bg8 {[%clk 0:00:14.4]} 43... Rb1 {[%clk 0:00:17.7]} 44. Bh7
{[%clk 0:00:14.8]} 44... Nb5 {[%clk 0:00:16.5]} 45. h4 {[%clk 0:00:14.4]} 45...
Nd4 {[%clk 0:00:16.4]} 46. h5 {[%clk 0:00:13]} 46... Rb3 {[%clk 0:00:16.2]} 47.
Bg6 {[%clk 0:00:11.8]} 47... Nc6 {[%clk 0:00:15.5]} 48. Nc5 {[%clk 0:00:08]}
48... Rxb4 {[%clk 0:00:15.5]} 49. Ne4+ {[%clk 0:00:07.9]} 49... Ke7 {[%clk
0:00:15.8]} 50. Nc3 {[%clk 0:00:08]} 50... Rc4 {[%clk 0:00:16.2]} 51. Nd5+
{[%clk 0:00:08.3]} 51... Kf8 {[%clk 0:00:15.9]} 52. Ne3 {[%clk 0:00:08.6]} 52...
Ra4 {[%clk 0:00:15.2]} 53. Nd5 {[%clk 0:00:08.9]} 53... Ne5 {[%clk 0:00:15]} 54.
Bf5 {[%clk 0:00:08.7]} 54... Ra5 {[%clk 0:00:15.3]} 55. Ne3 {[%clk 0:00:09.3]}
55... Kf7 {[%clk 0:00:14.4]} 56. Be4 {[%clk 0:00:09.5]} 56... Nd7 {[%clk
0:00:13.9]} 57. Bg6+ {[%clk 0:00:09.5]} 57... Ke7 {[%clk 0:00:14.2]} 58. f4
{[%clk 0:00:09.7]} 58... Nf6 {[%clk 0:00:14.1]} 59. Nf5+ {[%clk 0:00:10.1]}
59... Kf8 {[%clk 0:00:14.2]} 60. Nd4 {[%clk 0:00:04.3]} 60... Nxh5 {[%clk
0:00:13.8]} 61. Ne6+ {[%clk 0:00:04.9]} 61... Kg8 {[%clk 0:00:13.8]} 62. Kh3
{[%clk 0:00:04.2]} 62... Nf6 {[%clk 0:00:13.2]} 63. Bc2 {[%clk 0:00:04.2]} 63...
Ra3 {[%clk 0:00:12.7]} 64. Bf5 {[%clk 0:00:03.9]} 64... Nh5 {[%clk 0:00:12.1]}
65. Kg4 {[%clk 0:00:02.3]} 65... Nxg3 {[%clk 0:00:11.8]} 66. Bg6 {[%clk
0:00:02.9]} 66... Ne2 {[%clk 0:00:11.4]} 0-1

[Event "Late-Titled-Tuesday-Blitz-April-02-2024"]
[Site "Chess.com"]
[Date "2024.04.02"]
[Round "5"]
[White "Zq1"]
[Black "Akhayan"]
[Result "1-0"]
[WhiteElo "2618"]
[BlackElo "2446"]
[TimeControl "180+1"]
[EndTime "14:54:31 PDT"]
[Termination "Zq1 won by checkmate"]

1. d4 {[%clk 0:03:00.9]} 1... Nf6 {[%clk 0:02:59.5]} 2. c4 {[%clk 0:03:00.8]}
2... g6 {[%clk 0:02:59.9]} 3. Nc3 {[%clk 0:03:00.2]} 3... d5 {[%clk 0:03:00.4]}
4. Nf3 {[%clk 0:02:59.4]} 4... Bg7 {[%clk 0:02:59.9]} 5. cxd5 {[%clk 0:02:59.5]}
5... Nxd5 {[%clk 0:02:59.4]} 6. Bd2 {[%clk 0:03:00.1]} 6... Nb6 {[%clk
0:02:58.1]} 7. Bg5 {[%clk 0:02:57]} 7... O-O {[%clk 0:02:58]} 8. e3 {[%clk
0:02:56]} 8... c5 {[%clk 0:02:56.1]} 9. dxc5 {[%clk 0:02:55.2]} 9... N6d7 {[%clk
0:02:56]} 10. Rc1 {[%clk 0:02:39.1]} 10... Nc6 {[%clk 0:02:55.6]} 11. Bb5 {[%clk
0:02:34.1]} 11... Nxc5 {[%clk 0:02:39.2]} 12. Qxd8 {[%clk 0:02:29.2]} 12... Rxd8
{[%clk 0:02:37.7]} 13. O-O {[%clk 0:02:16.5]} 13... Ne6 {[%clk 0:02:20.3]} 14.
Bh4 {[%clk 0:02:04.5]} 14... Bd7 {[%clk 0:02:09.9]} 15. Bxc6 {[%clk 0:01:58.4]}
15... Bxc6 {[%clk 0:02:09.6]} 16. Bxe7 {[%clk 0:01:58.2]} 16... Rd7 {[%clk
0:02:07]} 17. Ba3 {[%clk 0:01:56.6]} 17... Rc8 {[%clk 0:01:10.7]} 18. Nb5 {[%clk
0:01:49.7]} 18... Ra8 {[%clk 0:01:00.3]} 19. Nbd4 {[%clk 0:01:26]} 19... Nxd4
{[%clk 0:00:59.7]} 20. Nxd4 {[%clk 0:01:26.1]} 20... Bxd4 {[%clk 0:00:58.2]} 21.
exd4 {[%clk 0:01:26.2]} 21... Rxd4 {[%clk 0:00:57.6]} 22. f3 {[%clk 0:01:23.1]}
22... Rd2 {[%clk 0:00:54.4]} 23. Rf2 {[%clk 0:01:14.1]} 23... Rad8 {[%clk
0:00:53.6]} 24. h4 {[%clk 0:01:13.7]} 24... Rxf2 {[%clk 0:00:52.4]} 25. Kxf2
{[%clk 0:01:13.7]} 25... Rd2+ {[%clk 0:00:52.2]} 26. Kg3 {[%clk 0:01:13.6]}
26... h5 {[%clk 0:00:50.1]} 27. Re1 {[%clk 0:01:09.2]} 27... Rd8 {[%clk
0:00:35]} 28. Re7 {[%clk 0:01:06.8]} 28... Re8 {[%clk 0:00:31.5]} 29. Rc7 {[%clk
0:01:06.1]} 29... a6 {[%clk 0:00:31.1]} 30. Bb4 {[%clk 0:01:05.7]} 30... Kg7
{[%clk 0:00:29.7]} 31. Bc3+ {[%clk 0:01:05.5]} 31... Kg8 {[%clk 0:00:29.2]} 32.
Kf4 {[%clk 0:01:03.8]} 32... Rd8 {[%clk 0:00:18.5]} 33. Kg5 {[%clk 0:01:01.3]}
33... Kf8 {[%clk 0:00:18.2]} 34. Kh6 {[%clk 0:00:54.3]} 34... Rd7 {[%clk
0:00:14.8]} 35. Rc8+ {[%clk 0:00:50]} 35... Ke7 {[%clk 0:00:15.4]} 36. Kg7
{[%clk 0:00:49]} 36... Ke6 {[%clk 0:00:14.3]} 37. Bf6 {[%clk 0:00:45.3]} 37...
Bd5 {[%clk 0:00:12.1]} 38. Re8+ {[%clk 0:00:40.6]} 38... Kf5 {[%clk 0:00:12.6]}
39. Re5+ {[%clk 0:00:35.8]} 39... Kf4 {[%clk 0:00:12.8]} 40. Re2 {[%clk
0:00:32.2]} 40... Kg3 {[%clk 0:00:13]} 41. Rd2 {[%clk 0:00:31]} 41... Be6 {[%clk
0:00:12.9]} 42. Re2 {[%clk 0:00:30.9]} 42... Rc7 {[%clk 0:00:12]} 43. a4 {[%clk
0:00:29.3]} 43... Rd7 {[%clk 0:00:12.1]} 44. b4 {[%clk 0:00:28.3]} 44... Kh2
{[%clk 0:00:10.7]} 45. g4+ {[%clk 0:00:27]} 45... Kg3 {[%clk 0:00:10.5]} 46.
gxh5 {[%clk 0:00:26.8]} 46... gxh5 {[%clk 0:00:11]} 47. Re5 {[%clk 0:00:26.3]}
47... Kxf3 {[%clk 0:00:10]} 48. Rxh5 {[%clk 0:00:25.9]} 48... Kg4 {[%clk
0:00:10.2]} 49. Rh8 {[%clk 0:00:24]} 49... Bf5 {[%clk 0:00:08.3]} 50. h5 {[%clk
0:00:23.1]} 50... Rd1 {[%clk 0:00:08]} 51. h6 {[%clk 0:00:22]} 51... Rg1 {[%clk
0:00:08.7]} 52. Kf8 {[%clk 0:00:18.3]} 52... Rc1 {[%clk 0:00:05.9]} 53. h7
{[%clk 0:00:14.8]} 53... Rc8+ {[%clk 0:00:05.7]} 54. Kg7 {[%clk 0:00:14.9]}
54... Rxh8 {[%clk 0:00:05.5]} 55. Kxh8 {[%clk 0:00:14.8]} 55... Kf4 {[%clk
0:00:04.4]} 56. Kg7 {[%clk 0:00:13.5]} 56... Bxh7 {[%clk 0:00:04.9]} 57. Kxh7
{[%clk 0:00:13.5]} 57... Ke4 {[%clk 0:00:05.2]} 58. a5 {[%clk 0:00:13.7]} 58...
Kd5 {[%clk 0:00:05.5]} 59. Bd8 {[%clk 0:00:13]} 59... Kc4 {[%clk 0:00:06.4]} 60.
Kh6 {[%clk 0:00:12.3]} 60... Kb5 {[%clk 0:00:07.3]} 61. Kg5 {[%clk 0:00:11.9]}
61... Kxb4 {[%clk 0:00:07.4]} 62. Bb6 {[%clk 0:00:10.1]} 62... Kb5 {[%clk
0:00:08.3]} 63. Kf6 {[%clk 0:00:09.9]} 63... Kc6 {[%clk 0:00:09]} 64. Kxf7
{[%clk 0:00:10.2]} 64... Kd7 {[%clk 0:00:09.7]} 65. Kf6 {[%clk 0:00:10.7]} 65...
Kc8 {[%clk 0:00:10.1]} 66. Ke7 {[%clk 0:00:10.8]} 66... Kb8 {[%clk 0:00:10.7]}
67. Kd7 {[%clk 0:00:11.2]} 67... Ka8 {[%clk 0:00:11.4]} 68. Bc5 {[%clk
0:00:11.3]} 68... Kb8 {[%clk 0:00:11.6]} 69. Kd8 {[%clk 0:00:11.3]} 69... Ka8
{[%clk 0:00:11.9]} 70. Kc7 {[%clk 0:00:11.3]} 70... b5 {[%clk 0:00:10]} 71. axb6
{[%clk 0:00:12]} 71... a5 {[%clk 0:00:09.4]} 72. b7# {[%clk 0:00:12.7]} 1-0

[Event "Late-Titled-Tuesday-Blitz-April-02-2024"]
[Site "Chess.com"]
[Date "2024.04.02"]
[Round "5"]
[White "AjedrezenMadrid"]
[Black "Supelyel"]
[Result "0-1"]
[WhiteElo "2565"]
[BlackElo "2428"]
[TimeControl "180+1"]
[EndTime "14:54:35 PDT"]
[Termination "Supelyel won on time"]

1. Nf3 {[%clk 0:02:58.5]} 1... Nf6 {[%clk 0:02:58.3]} 2. b3 {[%clk 0:02:58.6]}
2... d6 {[%clk 0:02:53.5]} 3. Bb2 {[%clk 0:02:59.5]} 3... Nbd7 {[%clk
0:02:53.5]} 4. d4 {[%clk 0:02:59.7]} 4... c6 {[%clk 0:02:53.3]} 5. g3 {[%clk
0:02:59.7]} 5... Qc7 {[%clk 0:02:53.9]} 6. Bg2 {[%clk 0:03:00.2]} 6... e5 {[%clk
0:02:53.7]} 7. Nbd2 {[%clk 0:02:59.1]} 7... Be7 {[%clk 0:02:53.1]} 8. O-O {[%clk
0:02:58.6]} 8... O-O {[%clk 0:02:52.8]} 9. e4 {[%clk 0:02:58.1]} 9... Re8 {[%clk
0:02:52.8]} 10. Re1 {[%clk 0:02:56.4]} 10... Bf8 {[%clk 0:02:50.5]} 11. c4
{[%clk 0:02:56.1]} 11... a5 {[%clk 0:02:48.6]} 12. a3 {[%clk 0:02:55.9]} 12...
b6 {[%clk 0:02:48.6]} 13. Rc1 {[%clk 0:02:55.3]} 13... Bb7 {[%clk 0:02:44.1]}
14. Nf1 {[%clk 0:02:35.4]} 14... g6 {[%clk 0:02:30.2]} 15. h3 {[%clk 0:02:35.4]}
15... Bh6 {[%clk 0:02:24.4]} 16. Rc2 {[%clk 0:02:33.3]} 16... Rad8 {[%clk
0:02:23.5]} 17. Ne3 {[%clk 0:02:28.3]} 17... Nxe4 {[%clk 0:01:58.8]} 18. Ng4
{[%clk 0:02:27.8]} 18... Bg7 {[%clk 0:01:55.1]} 19. Rxe4 {[%clk 0:02:27.2]}
19... f5 {[%clk 0:01:55.2]} 20. Ree2 {[%clk 0:02:20.9]} 20... fxg4 {[%clk
0:01:50.9]} 21. hxg4 {[%clk 0:02:21.8]} 21... Re7 {[%clk 0:01:29.7]} 22. dxe5
{[%clk 0:02:05.5]} 22... dxe5 {[%clk 0:01:18.1]} 23. Rcd2 {[%clk 0:02:02.3]}
23... Rde8 {[%clk 0:01:18.2]} 24. b4 {[%clk 0:01:52.8]} 24... axb4 {[%clk
0:00:58.7]} 25. axb4 {[%clk 0:01:53.7]} 25... c5 {[%clk 0:00:36.5]} 26. b5
{[%clk 0:01:49.3]} 26... e4 {[%clk 0:00:25.2]} 27. Bxg7 {[%clk 0:01:41.2]} 27...
exf3 {[%clk 0:00:24.8]} 28. Rxe7 {[%clk 0:01:28.9]} 28... Rxe7 {[%clk
0:00:23.4]} 29. Bxf3 {[%clk 0:00:50.3]} 29... Bxf3 {[%clk 0:00:21.9]} 30. Qxf3
{[%clk 0:00:48.5]} 30... Kxg7 {[%clk 0:00:22.4]} 31. g5 {[%clk 0:00:47.7]} 31...
Ne5 {[%clk 0:00:18.1]} 32. Qf6+ {[%clk 0:00:47.4]} 32... Kg8 {[%clk 0:00:16.9]}
33. Ra2 {[%clk 0:00:46.5]} 33... Re8 {[%clk 0:00:15.4]} 34. Re2 {[%clk
0:00:44.4]} 34... Qe7 {[%clk 0:00:14.2]} 35. Kf1 {[%clk 0:00:22.9]} 35... Qxf6
{[%clk 0:00:14]} 36. gxf6 {[%clk 0:00:23.4]} 36... Kf7 {[%clk 0:00:14.7]} 37.
Ra2 {[%clk 0:00:21.8]} 37... Nxc4 {[%clk 0:00:14.5]} 38. Ra7+ {[%clk 0:00:22.2]}
38... Kxf6 {[%clk 0:00:15.2]} 39. Rxh7 {[%clk 0:00:22.5]} 39... Nd6 {[%clk
0:00:15.3]} 40. f4 {[%clk 0:00:21.8]} 40... Nxb5 {[%clk 0:00:15.7]} 41. Kf2
{[%clk 0:00:22.7]} 41... Nd4 {[%clk 0:00:15.8]} 42. g4 {[%clk 0:00:22.5]} 42...
Rb8 {[%clk 0:00:16.2]} 43. Rc7 {[%clk 0:00:21.6]} 43... b5 {[%clk 0:00:16.2]}
44. Ke3 {[%clk 0:00:22]} 44... b4 {[%clk 0:00:16.4]} 45. Ke4 {[%clk 0:00:22.3]}
45... Ne6 {[%clk 0:00:17]} 46. g5+ {[%clk 0:00:21.7]} 46... Nxg5+ {[%clk
0:00:16.8]} 47. fxg5+ {[%clk 0:00:22.2]} 47... Kxg5 {[%clk 0:00:17.7]} 48. Rxc5+
{[%clk 0:00:22.5]} 48... Kh6 {[%clk 0:00:17.3]} 49. Rc2 {[%clk 0:00:19.5]} 49...
b3 {[%clk 0:00:17.9]} 50. Rh2+ {[%clk 0:00:18.4]} 50... Kg5 {[%clk 0:00:18.3]}
51. Rg2+ {[%clk 0:00:18.8]} 51... Kh4 {[%clk 0:00:18.4]} 52. Rb2 {[%clk
0:00:17.4]} 52... g5 {[%clk 0:00:17.8]} 53. Kf3 {[%clk 0:00:17.5]} 53... g4+
{[%clk 0:00:17.3]} 54. Kg2 {[%clk 0:00:17.3]} 54... Rb4 {[%clk 0:00:17.2]} 55.
Kh2 {[%clk 0:00:17]} 55... g3+ {[%clk 0:00:17.6]} 56. Kg2 {[%clk 0:00:17.4]}
56... Kg4 {[%clk 0:00:18.5]} 57. Kg1 {[%clk 0:00:17.3]} 57... Kh3 {[%clk
0:00:18.6]} 58. Kf1 {[%clk 0:00:18.2]} 58... Rf4+ {[%clk 0:00:18.6]} 59. Kg1
{[%clk 0:00:19.1]} 59... Re4 {[%clk 0:00:18.9]} 60. Kf1 {[%clk 0:00:18.7]} 60...
Rf4+ {[%clk 0:00:19.2]} 61. Kg1 {[%clk 0:00:19]} 61... Rc4 {[%clk 0:00:20.1]}
62. Kf1 {[%clk 0:00:18.4]} 62... Rc1+ {[%clk 0:00:20.7]} 63. Ke2 {[%clk
0:00:18.2]} 63... Rc2+ {[%clk 0:00:21.6]} 64. Kf1 {[%clk 0:00:17.2]} 64... Rxb2
{[%clk 0:00:20.3]} 65. Ke1 {[%clk 0:00:18.1]} 65... Rc2 {[%clk 0:00:20.2]} 66.
Kd1 {[%clk 0:00:18.7]} 66... Kg4 {[%clk 0:00:19.9]} 0-1